bitfinex-derivatives/quotes_SOLF0:USTF0_20251026
["timestamp","ask_amount","ask_price","bid_price","bid_amount"]
[1761490590309,6.47890166,198.94,198.9,2.62]
[1761490590508,2.75,198.94,198.9,2.62]
[1761490592706,2.75,198.98,198.91,2.62]
[1761490592917,3.72568324,198.99,198.91,2.62]
[1761490593114,2.75,198.99,198.91,2.62]
[1761490593306,6.47568324,198.99,198.91,2.62]
[1761490593510,2.75,198.99,198.91,2.62]
[1761490593808,10.79697271,199.02,198.87,11.93947241]
[1761490594115,8.04697271,199.01,198.88,2.62]
[1761490594417,2.75,199.02,198.98,2.62]
[1761490595316,6.47615376,199.02,198.98,2.62]
[1761490595620,2.75,199.02,198.98,2.62]
[1761490596916,6.47598854,199.02,198.98,2.62]
[1761490597110,6.47598854,199.02,198.99,2.62]
[1761490597111,2.75,199.02,198.99,2.62]
[1761490598017,3.72602889,199.03,198.99,2.62]
[1761490598218,3.72602889,199.03,199.0,2.62]
[1761490598410,2.75,199.04,199.0,2.62]
[1761490598808,2.75,199.04,198.99,4.5227]
[1761490599012,6.47602889,199.04,198.98,2.83]
[1761490599206,6.36559137,199.03,198.98,2.83]
[1761490599415,2.64,199.03,198.98,2.83]
[1761490600012,2.64,199.03,198.99,4.5227]
[1761490600214,2.64,199.02,198.99,4.5227]
[1761490600519,2.64,199.01,198.99,4.5227]
[1761490602320,2.64,199.01,198.99,7.3527]
[1761490605617,6.35997541,199.05,198.99,7.3527]
[1761490605923,2.64,199.04,199.01,2.83]
[1761490606225,3.71997541,199.05,199.01,2.83]
[1761490606419,2.64,199.07,199.04,2.83]
[1761490606720,3.72169263,199.08,199.04,2.83]
[1761490607421,2.64,199.09,199.04,2.83]
[1761490608124,2.64,199.09,199.05,2.83]
[1761490608721,2.64,199.08,199.05,2.83]
[1761490609021,2.64,199.07,199.02,7.3521]
[1761490609219,2.64,199.06,199.02,7.3521]
[1761490609921,2.64,199.06,199.03,4.5218]
[1761490610520,2.64,199.06,199.03,7.3518]
[1761490611825,2.64,199.09,199.03,4.5218]
[1761490615226,2.64,199.09,199.02,2.83]
[1761490615426,2.64,199.09,199.01,65.5624]
[1761490615822,2.64,199.08,199.01,65.5624]
[1761490616424,2.64,199.08,199.01,61.04]
[1761490616817,2.64,199.07,199.01,61.04]
[1761490620832,2.64,199.06,199.01,61.04]
[1761490621036,2.64,199.05,199.01,61.04]
[1761490623035,2.64,199.05,199.01,63.7]
[1761490624939,2.64,199.05,199.01,61.04]
[1761490625242,2.64,199.05,198.96,63.68]
[1761490625621,2.75,199.04,198.96,63.68]
[1761490625834,3.69924677,199.05,198.97,2.66]
[1761490625835,2.75,199.03,198.97,2.66]
[1761490626237,6.44924677,199.03,198.97,2.66]
[1761490626436,2.75,199.03,198.97,2.66]
[1761490627330,6.44766938,199.03,198.97,2.66]
[1761490627536,2.75,199.03,198.97,2.66]
[1761490628325,2.75,199.02,198.97,2.66]
[1761490628524,2.8,199.01,198.97,2.66]
[1761490628836,3.69744,199.01,198.97,2.66]
[1761490629033,2.8,199.03,198.97,2.66]
[1761490629936,6.4972054,199.03,198.97,2.66]
[1761490630135,2.8,199.03,198.97,2.66]
[1761490631036,6.4973738,199.03,198.97,2.66]
[1761490631340,2.8,199.03,198.97,2.66]
[1761490632241,6.49924258,199.03,198.97,2.66]
[1761490632441,2.8,199.03,198.97,2.66]
[1761490633338,6.49964691,199.03,198.97,2.66]
[1761490633534,2.8,199.03,198.97,2.66]
[1761490634446,10.80594682,199.03,198.97,2.66]
[1761490634635,6.50069901,199.02,198.97,2.66]
[1761490634832,2.8,199.01,198.97,2.66]
[1761490636843,2.8,199.01,198.96,61.02]
[1761490637145,2.8,199.01,198.96,63.71]
[1761490637539,2.8,199.0,198.96,63.71]
[1761490637740,2.8,198.99,198.96,63.71]
[1761490639242,2.8,198.99,198.96,61.02]
[1761490640243,2.8,198.98,198.96,61.02]
[1761490640446,2.8,198.97,198.96,61.02]
[1761490642847,2.8,199.0,198.96,63.71]
[1761490643038,2.8,199.0,198.97,2.69]
[1761490643239,6.50122815,199.0,198.97,2.69]
[1761490643440,2.8,199.0,198.97,2.69]
[1761490644342,2.8,198.99,198.97,2.69]
[1761490644947,2.8,198.99,198.96,61.02]
[1761490645541,2.8,198.98,198.96,61.02]
[1761490645737,2.8,198.97,198.96,61.02]
[1761490647456,2.8,199.0,198.96,61.02]
[1761490647752,2.8,198.99,198.96,61.02]
[1761490647940,2.8,198.98,198.96,61.02]
[1761490648145,2.8,198.98,198.94,2.69]
[1761490655163,2.8,199.01,198.94,2.69]
[1761490655346,8.10284102,199.03,198.94,2.69]
[1761490655553,8.10284102,199.02,198.94,2.69]
[1761490655857,8.10284102,199.01,198.95,2.69]
[1761490656058,2.8,199.03,198.97,2.69]
[1761490656556,10.90536451,199.03,198.97,2.69]
[1761490656761,2.8,199.03,198.97,2.69]
[1761490657359,8.10760302,199.05,198.97,2.69]
[1761490657550,8.10760302,199.04,198.97,2.69]
[1761490657860,3.69711845,199.03,198.97,2.69]
[1761490658061,7.98876997,199.05,198.97,2.69]
[1761490658261,7.98876997,199.05,198.97,7.2132]
[1761490658456,7.98876997,199.05,198.98,2.69]
[1761490659059,7.98876997,199.04,198.98,2.69]
[1761490659363,3.69711845,199.04,198.98,2.69]
[1761490659759,2.75,199.05,198.98,2.69]
[1761490660063,2.75,199.05,198.99,2.83]
[1761490660260,10.74075858,199.05,198.99,2.83]
[1761490660460,3.69711845,199.04,198.99,2.83]
[1761490660654,2.75,199.04,198.99,2.83]
[1761490661459,6.44711845,199.04,198.99,2.83]
[1761490661758,2.75,199.04,198.99,2.83]
[1761490661957,2.75,199.04,198.96,63.87]
[1761490662558,2.75,199.03,198.96,63.87]
[1761490662752,2.75,199.02,198.96,63.87]
[1761490663068,2.75,199.01,198.97,2.83]
[1761490664664,2.75,199.01,198.96,61.04]
[1761490665361,2.75,199.0,198.96,61.04]
[1761490666065,2.75,199.0,198.96,63.87]
[1761490666267,2.75,199.0,198.96,61.04]
[1761490666766,2.75,199.0,198.96,63.87]
[1761490666965,2.75,198.99,198.96,63.87]
[1761490668359,6.45400759,198.99,198.96,63.87]
[1761490668566,2.75,198.99,198.96,63.87]
[1761490669365,8.00490697,199.0,198.97,2.83]
[1761490669566,2.75,199.01,198.97,2.83]
[1761490670156,2.75,199.0,198.97,2.83]
[1761490670363,6.45552892,199.0,198.97,2.83]
[1761490670564,2.75,199.0,198.97,2.83]
[1761490671460,6.45560021,199.0,198.97,2.83]
[1761490671657,2.75,199.0,198.97,2.83]
[1761490672772,6.45529401,199.0,198.97,2.83]
[1761490672972,2.75,199.0,198.97,2.83]
[1761490674269,6.45535658,199.0,198.97,2.83]
[1761490674464,2.75,199.0,198.97,2.83]
[1761490675268,6.45516377,199.0,198.97,2.83]
[1761490675470,2.75,199.0,198.96,61.04]
[1761490676276,2.75,198.99,198.96,63.87]
[1761490676468,6.45522681,198.99,198.96,63.87]
[1761490676664,2.75,198.99,198.96,63.87]
[1761490676868,2.75,198.99,198.96,61.04]
[1761490677673,2.75,198.98,198.93,2.83]
[1761490677979,2.75,198.97,198.94,61.02]
[1761490678669,2.75,198.97,198.94,63.85]
[1761490679070,3.70443024,198.98,198.95,2.83]
[1761490679279,8.00499971,199.0,198.95,2.83]
[1761490679471,2.75,198.99,198.95,2.83]
[1761490679671,2.75,198.98,198.95,2.83]
[1761490679874,6.45443024,198.98,198.95,2.83]
[1761490680079,2.75,198.98,198.95,2.83]
[1761490680378,2.75,199.01,198.95,2.83]
[1761490680565,10.75577704,199.01,198.95,2.83]
[1761490680771,10.75577704,199.0,198.95,2.83]
[1761490680972,3.70492039,198.99,198.95,2.83]
[1761490681278,2.75,198.99,198.95,2.83]
[1761490683177,10.73022486,199.02,198.95,2.83]
[1761490683377,3.70492039,199.01,198.95,2.83]
[1761490683578,7.95060246,199.04,198.95,2.83]
[1761490684069,7.95060246,199.04,198.97,4.5232]
[1761490684275,7.95060246,199.04,198.99,2.73]
[1761490684477,3.70492039,199.03,198.99,2.73]
[1761490684677,2.78,199.04,198.99,2.73]
[1761490684875,10.73048048,199.04,198.99,2.73]
[1761490685081,3.70492039,199.03,198.99,2.73]
[1761490685275,2.78,199.04,198.99,2.73]
[1761490685680,3.70492039,199.04,198.99,2.73]
[1761490685878,7.95208439,199.08,198.99,2.73]
[1761490686077,7.47359223,199.1,198.99,2.73]
[1761490686078,7.95208439,199.07,198.99,2.73]
[1761490686283,3.70609274,199.06,198.99,2.73]
[1761490686476,7.95091843,199.08,198.99,2.73]
[1761490686676,10.73091843,199.08,198.99,2.73]
[1761490686877,7.95091843,199.07,198.99,2.73]
[1761490687074,7.95091843,199.07,199.02,2.73]
[1761490687280,2.78,199.05,198.99,2.73]
[1761490688971,2.78,199.05,198.99,4.5228]
[1761490689185,2.78,199.05,199.0,2.58]
[1761490693180,2.8,199.09,199.0,2.58]
[1761490693583,2.8,199.08,199.0,2.58]
[1761490693889,10.74373076,199.08,199.0,2.58]
[1761490694078,3.70234567,199.07,199.0,2.58]
[1761490694481,2.8,199.08,199.0,2.58]
[1761490694982,2.8,199.07,199.0,2.58]
[1761490695181,6.50234567,199.07,199.0,2.58]
[1761490695384,2.8,199.07,199.0,2.58]
[1761490696291,6.50199764,199.07,199.01,2.58]
[1761490696593,2.8,199.07,199.01,2.58]
[1761490697585,2.8,199.06,199.01,2.58]
[1761490697884,2.8,199.05,199.01,2.58]
[1761490702692,6.50236696,199.05,199.01,2.58]
[1761490702887,3.70236696,199.04,199.01,2.58]
[1761490703280,2.8,199.05,199.01,2.58]
[1761490703882,6.50236696,199.05,199.01,2.58]
[1761490704083,2.8,199.05,199.01,2.58]
[1761490704491,10.74444394,199.08,199.01,2.58]
[1761490704791,6.5025279,199.07,199.01,2.58]
[1761490704995,6.5025279,199.06,199.01,2.58]
[1761490705196,2.8,199.06,199.01,2.58]
[1761490707295,2.8,199.05,199.01,2.58]
[1761490710189,2.8,199.05,198.95,2.58]
[1761490710590,2.8,199.04,198.95,2.58]
[1761490710794,2.8,199.03,198.95,2.58]
[1761490711001,2.8,199.03,198.96,2.58]
[1761490711210,2.8,199.02,198.96,2.58]
[1761490711396,2.8,199.01,198.96,2.58]
[1761490711998,2.8,199.01,198.93,7.1042]
[1761490712198,2.8,199.01,198.94,2.58]
[1761490712392,2.8,199.0,198.94,2.58]
[1761490713901,2.8,199.0,198.92,160.73451854]
[1761490714696,2.8,198.99,198.92,160.73451854]
[1761490714898,2.8,198.98,198.92,163.31451854]
[1761490715098,6.49458544,198.98,198.92,163.31451854]
[1761490715301,2.8,198.98,198.92,163.31451854]
[1761490720507,2.7,199.01,198.93,2.61]
[1761490722002,2.7,199.01,198.94,4.524]
[1761490722202,2.7,199.01,198.94,7.134]
[1761490722801,2.7,199.01,198.92,160.73451854]
[1761490722802,2.7,199.01,198.92,167.86891854]
[1761490723604,2.7,199.0,198.92,167.86891854]
[1761490724002,2.7,199.0,198.92,163.34451854]
[1761490725202,2.7,199.0,198.92,63.59]
[1761490725499,2.7,199.01,198.92,60.98]
[1761490725703,2.7,199.0,198.92,60.98]
[1761490726005,2.7,198.99,198.92,60.98]
[1761490726505,2.7,198.99,198.93,2.61]
[1761490726901,2.7,198.98,198.93,2.61]
[1761490729407,2.7,199.01,198.94,2.61]
[1761490730214,2.7,199.0,198.94,2.61]
[1761490732108,2.7,199.0,198.95,2.61]
[1761490741412,2.7,199.04,198.96,2.61]
[1761490742514,2.64,199.03,198.96,2.61]
[1761490745319,2.64,199.02,198.96,2.61]
[1761490745922,2.64,199.02,198.93,2.73]
[1761490746222,2.64,199.01,198.93,2.73]
[1761490746519,2.64,199.0,198.93,2.73]
[1761490746916,6.32391157,199.0,198.93,2.73]
[1761490747108,3.68439898,198.99,198.93,2.73]
[1761490747312,2.64,198.99,198.93,2.73]
[1761490747913,6.32444535,198.99,198.93,2.73]
[1761490748107,2.64,198.99,198.93,2.73]
[1761490748316,2.64,198.99,198.91,4.5245]
[1761490748519,2.64,198.99,198.91,7.1645]
[1761490748716,2.68,198.98,198.91,7.1645]
[1761490749413,10.61744105,198.98,198.91,7.1645]
[1761490749614,3.68420958,198.97,198.91,7.1645]
[1761490749814,2.68,198.98,198.91,7.1645]
[1761490750619,10.61687009,198.98,198.91,7.1645]
[1761490750822,3.68420958,198.97,198.91,7.1645]
[1761490751023,2.68,198.98,198.91,7.1645]
[1761490751618,2.68,198.98,198.92,2.64]
[1761490752013,6.36420958,198.98,198.92,2.64]
[1761490752213,6.36420958,198.97,198.92,2.64]
[1761490752416,2.68,198.97,198.92,2.64]
[1761490754621,6.36389591,198.97,198.92,2.64]
[1761490754823,2.68,198.97,198.92,2.64]
[1761490755623,3.6862037,198.99,198.93,2.64]
[1761490756228,2.68,199.0,198.93,2.64]
[1761490756720,6.36887605,199.0,198.95,2.64]
[1761490756923,3.68887605,198.99,198.95,2.64]
[1761490757325,2.68,199.0,198.95,2.64]
[1761490758825,10.6280145,199.0,198.95,2.64]
[1761490759024,3.68887605,198.99,198.95,2.64]
[1761490759424,2.68,198.99,198.95,2.64]
[1761490760029,2.68,198.98,198.92,2.64]
[1761490760227,3.68887605,198.97,198.89,2.64]
[1761490760425,2.68,198.96,198.89,2.64]
[1761490765739,2.68,198.96,198.91,4.5245]
[1761490766034,2.68,198.96,198.92,2.64]
[1761490766232,3.68725344,198.98,198.92,2.64]
[1761490766440,2.68,199.0,198.92,7.1643]
[1761490766641,3.68725344,198.99,198.93,2.64]
[1761490766936,6.36725344,198.99,198.93,2.64]
[1761490767136,6.36725344,198.98,198.93,2.64]
[1761490767338,6.36725344,198.97,198.93,2.64]
[1761490767638,2.68,198.97,198.93,2.64]
[1761490769841,2.68,198.97,198.88,60.98]
[1761490769842,2.68,198.96,198.88,60.98]
[1761490770046,2.68,198.94,198.86,2.64]
[1761490770247,2.68,198.93,198.86,2.64]
[1761490770447,6.36977049,198.93,198.86,2.64]
[1761490770649,3.68977049,198.92,198.86,2.64]
[1761490770844,2.68,198.93,198.86,2.64]
[1761490771147,2.68,198.93,198.87,2.64]
[1761490773545,6.36977049,198.93,198.87,2.64]
[1761490773747,2.68,198.93,198.87,2.64]
[1761490777049,2.68,198.93,198.83,2.64]
[1761490777242,2.68,198.91,198.83,2.64]
[1761490777442,2.68,198.9,198.83,2.64]
[1761490778645,2.68,198.9,198.84,60.96]
[1761490778852,3.68192235,198.94,198.84,60.96]
[1761490778853,2.63,198.93,198.85,2.61]
[1761490781452,2.63,198.92,198.85,2.61]
[1761490785443,2.63,198.92,198.84,60.96]
[1761490788860,2.63,198.91,198.84,60.96]
[1761490789452,2.63,198.9,198.84,63.57]
[1761490789653,2.63,198.89,198.84,63.57]
[1761490790151,2.63,198.89,198.85,2.61]
[1761490790351,3.67594677,198.92,198.85,2.61]
[1761490790352,6.30594677,198.92,198.85,2.61]
[1761490790552,2.63,198.92,198.85,2.61]
[1761490791757,2.63,198.91,198.85,2.61]
[1761490797463,2.63,198.91,198.84,60.96]
[1761490798052,3.67603253,198.91,198.84,60.96]
[1761490798258,2.63,198.9,198.84,60.96]
[1761490798659,2.63,198.9,198.82,63.59]
[1761490798965,2.63,198.9,198.83,2.61]
[1761490802552,2.78,198.93,198.84,2.66]
[1761490803260,2.78,198.96,198.86,2.66]
[1761490804062,18.76,199.07,198.82,76.06]
[1761490804063,10.64227823,199.0,198.89,2.66]
[1761490804369,3.68494891,198.99,198.91,2.66]
[1761490804561,3.68494891,198.99,198.8,9.0543]
[1761490804562,3.68494891,198.99,198.93,2.66]
[1761490804762,2.78,199.0,198.93,2.66]
[1761490805762,2.78,199.03,198.93,2.66]
[1761490806854,2.78,199.02,198.93,2.66]
[1761490807059,2.78,199.02,198.94,2.66]
[1761490808060,6.46888406,199.02,198.94,2.66]
[1761490808265,3.68888406,199.01,198.94,2.66]
[1761490808465,2.78,199.02,198.94,2.66]
[1761490809772,2.68,199.02,198.94,2.66]
[1761490811966,2.68,199.02,198.95,2.7]
[1761490812362,6.23100436,199.14,198.95,2.7]
[1761490812363,2.68,199.05,198.95,2.7]
[1761490813660,3.68244943,199.08,198.93,2.7]
[1761490813859,6.36244943,199.08,198.93,2.7]
[1761490814076,2.68,199.08,198.93,2.7]
[1761490814970,2.68,199.07,198.99,2.7]
[1761490820073,2.68,199.07,198.99,7.2227]
[1761490820279,2.68,199.07,199.0,2.7]
[1761490833674,2.68,199.07,198.97,4.5233]
[1761490833675,2.68,199.07,198.97,7.2233]
[1761490834386,2.68,199.07,198.97,4.5233]
[1761490834586,2.68,199.07,198.98,2.7]
[1761490839884,2.68,199.07,198.98,4.523]
[1761490840092,2.68,199.07,198.99,2.73]
[1761490841483,2.7,199.06,198.99,2.73]
[1761490843392,2.7,199.04,198.99,2.73]
[1761490843591,2.7,199.03,198.99,2.73]
[1761490843783,7.35182584,199.03,198.99,2.73]
[1761490843986,4.65182584,199.02,198.99,2.73]
[1761490844180,2.7,199.03,198.99,2.73]
[1761490845488,2.7,199.02,198.99,2.73]
[1761490845688,2.7,199.02,198.96,2.73]
[1761490847897,10.92965583,199.02,198.96,2.73]
[1761490848093,7.23994469,199.01,198.96,2.73]
[1761490848286,4.53994469,199.0,198.96,2.73]
[1761490848888,4.53994469,199.03,198.96,2.73]
[1761490849086,4.53994469,199.02,198.96,2.73]
[1761490849289,4.53994469,199.03,198.96,2.73]
[1761490849489,2.7,199.04,198.96,2.73]
[1761490849901,10.93594554,199.04,198.96,2.73]
[1761490850202,8.23594554,199.03,198.97,2.73]
[1761490850399,6.39600085,199.02,198.97,2.73]
[1761490850595,2.7,199.02,198.97,2.73]
[1761490851391,2.7,199.01,198.97,2.73]
[1761490851900,6.39718296,199.04,198.97,2.73]
[1761490852096,3.69718296,199.04,198.97,2.73]
[1761490852302,6.39718296,199.04,198.97,2.73]
[1761490852603,3.69827131,199.03,198.97,2.73]
[1761490853302,2.7,199.04,198.97,2.73]
[1761490853601,6.39827131,199.04,198.97,2.73]
[1761490853795,3.69827131,199.03,198.97,2.73]
[1761490854197,2.7,199.04,198.97,2.73]
[1761490854500,3.69827131,199.03,198.97,2.73]
[1761490855000,6.39827131,199.03,198.98,2.73]
[1761490855204,3.69827131,199.02,198.98,2.73]
[1761490855502,2.7,199.03,198.98,2.73]
[1761490856004,2.7,199.02,198.98,2.73]
[1761490857202,6.39827131,199.02,198.98,2.73]
[1761490857502,6.39827131,199.01,198.98,2.73]
[1761490857696,2.7,199.01,198.98,2.73]
[1761490858803,2.7,199.01,198.95,2.73]
[1761490859006,6.24325087,199.08,198.95,2.73]
[1761490859007,2.7,199.0,198.95,2.73]
[1761490859794,2.7,199.0,198.93,60.92]
[1761490860496,2.7,198.99,198.92,2.73]
[1761490860702,2.7,198.97,198.92,2.73]
[1761490860897,2.7,198.96,198.89,7.2551]
[1761490861098,2.7,198.96,198.89,68.1751]
[1761490861299,2.7,198.96,198.9,2.73]
[1761490864197,6.40880737,198.96,198.9,2.73]
[1761490864410,2.7,198.96,198.9,2.73]
[1761490871215,2.7,198.96,198.9,63.65]
[1761490871813,2.7,198.96,198.87,7.2955]
[1761490872115,2.7,198.96,198.88,60.92]
[1761490872116,2.81,198.95,198.88,60.92]
[1761490872414,2.81,198.94,198.88,60.92]
[1761490872608,3.69765626,198.94,198.88,60.92]
[1761490872806,2.81,198.93,198.88,60.92]
[1761490873919,2.81,198.92,198.88,60.92]
[1761490876818,7.06693798,198.95,198.89,2.77]
[1761490877117,2.81,198.94,198.89,2.77]
[1761490877312,2.81,199.0,198.89,2.77]
[1761490877513,2.81,198.99,198.89,2.77]
[1761490878014,2.81,198.98,198.89,2.77]
[1761490878317,2.81,198.97,198.89,2.77]
[1761490879008,2.81,198.97,198.91,4.5246]
[1761490879712,2.81,198.97,198.91,7.2946]
[1761490879912,2.81,198.97,198.91,2.77]
[1761490880720,2.81,198.97,198.88,63.69]
[1761490881518,2.81,198.97,198.88,60.92]
[1761490881717,2.81,198.97,198.89,2.77]
[1761490882414,2.81,198.97,198.86,2.77]
[1761490882615,2.81,198.96,198.86,2.77]
[1761490883025,2.81,198.95,198.86,2.77]
[1761490883218,2.81,198.94,198.86,2.77]
[1761490883420,2.81,198.93,198.86,2.77]
[1761490883621,2.81,198.93,198.82,2.77]
[1761490884019,2.81,198.92,198.82,2.77]
[1761490884329,2.81,198.91,198.82,2.77]
[1761490884717,2.81,198.9,198.82,2.77]
[1761490887021,2.81,198.9,198.8,60.92]
[1761490887522,2.81,198.9,198.79,2.77]
[1761490888113,2.81,198.89,198.79,2.77]
[1761490888320,2.81,198.88,198.79,2.77]
[1761490889827,2.81,198.94,198.79,2.77]
[1761490890031,2.81,198.94,198.86,2.77]
[1761490890333,2.81,198.94,198.86,63.71]
[1761490890927,2.81,198.94,198.86,60.94]
[1761490891436,2.81,198.93,198.86,60.94]
[1761490891630,3.70320067,198.93,198.86,60.94]
[1761490891835,2.81,198.92,198.86,60.94]
[1761490895937,3.70604101,198.92,198.86,60.94]
[1761490896144,2.81,198.91,198.86,60.94]
[1761490896341,2.81,198.91,198.86,63.71]
[1761490897240,2.81,198.91,198.87,2.77]
[1761490899443,2.81,198.91,198.8,2.77]
[1761490899645,2.85,198.9,198.8,2.77]
[1761490900035,2.85,198.89,198.8,2.77]
[1761490900236,4.66398881,198.94,198.8,2.77]
[1761490900237,2.85,198.88,198.8,2.77]
[1761490905339,2.85,198.92,198.8,2.77]
[1761490905640,2.85,198.92,198.82,4.5265]
[1761490905845,2.85,198.92,198.83,2.77]
[1761490906046,6.56327268,198.92,198.83,2.77]
[1761490906240,2.85,198.92,198.83,2.77]
[1761490907150,2.85,198.92,198.77,3.64520748]
[1761490907348,2.85,198.91,198.78,2.77]
[1761490907741,2.85,198.9,198.78,2.77]
[1761490908235,2.85,198.89,198.78,2.77]
[1761490908438,2.85,198.88,198.78,2.77]
[1761490912450,6.56629801,198.88,198.78,2.77]
[1761490912650,2.85,198.88,198.78,2.77]
[1761490916256,6.5684308,198.88,198.78,2.77]
[1761490916455,2.85,198.88,198.78,2.77]
[1761490917254,6.57040727,198.88,198.78,2.77]
[1761490917452,2.85,198.88,198.78,2.77]
[1761490918353,2.85,198.87,198.78,2.77]
[1761490919156,2.85,198.87,198.79,4.5274]
[1761490919358,2.85,198.87,198.8,2.77]
[1761490920757,2.85,198.86,198.8,2.77]
[1761490921258,2.85,198.86,198.78,2.77]
[1761490922660,2.61,198.9,198.78,2.77]
[1761490923849,2.61,198.89,198.78,2.77]
[1761490924054,2.61,198.89,198.82,2.68]
[1761490924454,3.73462183,198.89,198.82,2.68]
[1761490924655,3.73462183,198.91,198.82,2.68]
[1761490925153,3.73462183,198.91,198.77,61.8152405]
[1761490925154,3.73462183,198.91,198.84,2.68]
[1761490925759,6.34462183,198.92,198.85,2.68]
[1761490925959,3.73462183,198.92,198.85,60.94]
[1761490926159,2.61,198.95,198.85,60.94]
[1761490926160,10.64304287,198.95,198.86,2.68]
[1761490926356,3.74017963,198.94,198.86,2.68]
[1761490926551,2.61,198.95,198.86,2.68]
[1761490926759,2.61,198.95,198.89,2.68]
[1761490927158,6.35017963,198.95,198.89,2.68]
[1761490927359,3.74017963,198.94,198.89,2.68]
[1761490927555,2.61,198.95,198.89,2.68]
[1761490929862,2.61,198.95,198.89,4.525]
[1761490930063,2.61,198.95,198.9,2.72]
[1761490930468,3.74056015,198.97,198.86,15.09]
[1761490930668,3.74056015,198.99,198.91,2.72]
[1761490931065,2.72,199.0,198.93,7.2442]
[1761490931267,2.72,199.0,198.94,2.72]
[1761490931467,10.75054568,199.0,198.94,2.72]
[1761490931663,3.74056015,198.99,198.94,2.72]
[1761490931966,2.72,198.99,198.94,2.72]
[1761490932162,2.72,198.99,198.92,60.94]
[1761490932764,2.72,198.98,198.91,2.72]
[1761490933665,2.72,198.97,198.91,2.72]
[1761490938872,2.72,198.97,198.92,2.72]
[1761490939073,2.72,199.0,198.92,2.72]
[1761490940079,3.72966257,199.03,198.92,2.72]
[1761490940467,2.72,199.02,198.96,4.5234]
[1761490940670,2.72,199.02,198.96,65.4434]
[1761490940973,2.72,199.02,198.96,60.92]
[1761490942677,2.72,199.02,198.96,63.64]
[1761490943675,2.72,199.02,198.96,68.1633]
[1761490945179,2.72,199.02,198.96,63.64]
[1761490945378,2.72,199.02,198.96,60.92]
[1761490945780,2.72,199.01,198.93,60.9]
[1761490945975,2.72,199.01,198.9,2.72]
[1761490946181,2.72,199.01,198.88,38.34]
[1761490946380,2.72,199.01,198.87,2.72]
[1761490946583,2.72,199.0,198.87,45.74]
[1761490946882,2.72,198.99,198.87,45.74]
[1761490947276,2.72,198.98,198.87,45.74]
[1761490947485,3.72465987,199.0,198.87,45.74]